[Event "Prague Festival Masters 2024"]
[Site "Prague"]
[Date "2024.02.28"]
[Round "2.1"]
[White "Nguyen, Thai Dai Van"]
[Black "Gukesh D"]
[Result "0-1"]
[ECO "A13"]
[WhiteElo "2632"]
[BlackElo "2725"]
[Annotator "TA"]
[PlyCount "104"]
[EventDate "2024.02.22"]
[EventType "tourn"]
[EventCountry "CZE"]
[SourceTitle "playchess.com"]
[Source "ChessBase"]
[SourceQuality "1"]
[TimeControl "40/5400+30:1800+30"]

{[%evp 9,104,27,16,8,16,16,9,0,10,0,3,14,15,-40,-37,-34,-33,-32,-33,-33,-37,-43,-35,-46,-43,-60,-52,-56,-36,-30,-31,-36,-30,-27,-7,-30,-3,-31,-30,-52,-50,-56,-41,-43,-53,-75,-54,-79,-69,-84,-66,-88,-72,-86,0,-108,-66,-122,-111,-88,-46,-55,-33,-20,-33,-62,-80,-60,-7,-60,-28,-52,-50,-50,-62,-134,-142,-125,-120,-217,-219,-195,-175,-174,-181,-235,-227,-252,-238,-341,-341,-338,-341,-346,-346,-340,-320]} 1. c4 {[%emt 0:00:03]} e6 {[%emt 0:03:22]} 2. g3 {[%emt 0:00:17]} d5 {[%emt 0:00:15]} 3. Bg2 {[%emt 0:00:08]} d4 {[%emt 0:02:48]} 4. Nf3 {[%emt 0:00:52]} c5 {[%emt 0:00:17]} 5. O-O {[%emt 0:00:48]} Ne7 {[%emt 0:00:20]} 6. d3 {[%emt 0:06:56]} Nec6 {[%emt 0:01:15]} 7. e3 {[%emt 0:01:11]} Be7 {[%emt 0:01:01]} 8. Re1 {[%emt 0:14:25] The position is equal.} O-O {[%emt 0:11:24]} 9. Na3 {[%emt 0:11:10]} dxe3 {[%emt 0:12:28]} 10. Bxe3 {[%emt 0:00:53]} e5 {[%emt 0:00:41]} 11. Qb3 {[%emt 0:10:41]} ({Better is} 11. Nb5 $11) 11... Na6 $15 {[%emt 0:03:08][%cal Bb8a6,Ba6b4,Bb4c2][%mdl 32]} 12. Rad1 {[%emt 0:06:46]} Nab4 {[%emt 0:08:53]} 13. Nc2 {[%emt 0:15:08]} Nxc2 {[%emt 0:06:43]} 14. Qxc2 {[%emt 0:00:01]} Bg4 {[%emt 0:02:47]} 15. h3 {[%emt 0:01:35]} Be6 {[%emt 0:00:45]} 16. Qc3 {[%emt 0:07:25]} f6 {[%emt 0:01:44]} 17. Qa3 {[%emt 0:06:14]} Nb4 {[%emt 0:09:51]} 18. Qb3 {[%emt 0:00:27][%cal Od3d4] Prevents Nc2.} Qc8 {[%emt 0:00:35]} 19. Kh2 {[%emt 0:02:10]} Rb8 {[%emt 0:01:31]} 20. a3 {[%emt 0:04:58]} Nc6 {[%emt 0:00:23]} 21. Nd2 {[%emt 0:01:34][%cal Bf3d2,Bd2e4,Be4c3,Bc3d5][%mdl 32]} Kh8 {[%emt 0:06:25]} 22. Qc2 {[%emt 0:01:46]} Qd7 {[%emt 0:05:25]} 23. Ne4 {[%emt 0:00:35]} b6 {[%emt 0:00:51]} 24. Nc3 {[%emt 0:00:35]} Nd4 {[%emt 0:03:36]} 25. Bxd4 {[%emt 0:02:49]} cxd4 {[%emt 0:00:01]} 26. Nd5 {[%emt 0:01:02]} Bd6 {[%emt 0:00:05]} 27. b4 {[%emt 0:01:33]} f5 {[%emt 0:01:06]} 28. Qe2 {[%emt 0:01:23]} Rbe8 {[%emt 0:00:26]} 29. Rc1 {[%emt 0:00:52]} Bb8 {[%emt 0:01:13]} 30. Kg1 {[%emt 0:00:36]} Bf7 {[%emt 0:04:21]} 31. Qd2 {[%emt 0:00:27]} Be6 {[%emt 0:00:42]} (31... Bg8 $17) 32. Qd1 {[%emt 0:00:24]} (32. Qe2 $1 $11) 32... Qf7 {[%emt 0:01:48][%cal Ob6b5]} 33. Rc2 {[%emt 0:00:24] [#]} ({White should play} 33. a4 $15) 33... b5 $1 $17 {[%emt 0:02:15][%cal Oe5e4][%mdl 512] ...e4! would now be deadly.} 34. Rce2 {[%emt 0:00:26]} (34. a4 e4) 34... Rc8 {[%emt 0:00:40]} 35. Rxe5 {[%emt 0:00:27]} Bxe5 {[%emt 0:00:12]} 36. Rxe5 {[%emt 0:00:01]} bxc4 {[%emt 0:01:20]} 37. Nf4 {[%emt 0:00:37]} Bd7 {[%emt 0:00:42] aiming for ...c3.} 38. dxc4 {[%emt 0:00:25]} Rxc4 {[%emt 0:01:36]} ({Black should try} 38... Qxc4 $15 39. Kh2 d3) 39. Bf1 {[%emt 0:01:05]} (39. Kh2 $11) 39... Qf6 {[%emt 0:05:04]} 40. Rd5 {[%emt 0:00:48]} Rc7 {[%emt 0:00:05]} 41. b5 {[%emt 0:12:18]} Rfc8 {[%emt 0:02:29]} 42. Qxd4 {[%emt 0:02:25]} (42. Qd2 $15) 42... Qxd4 {[%emt 0:00:23]} 43. Rxd4 {[%emt 0:00:02]} Be8 {[%emt 0:00:22]} 44. Bd3 {[%emt 0:03:37] [#]} (44. Ng2 $17) 44... Rd7 $1 $19 {[%emt 0:04:17]} 45. Rb4 {[%emt 0:00:16]} g6 {[%emt 0:04:01]} 46. a4 {[%emt 0:00:37]} Rcd8 {[%emt 0:03:16][%cal Od7d4]} 47. Bc4 {[%emt 0:03:09]} (47. Bc2 {was called for.}) 47... Rd1+ {[%emt 0:03:08]} 48. Kg2 {[%emt 0:00:20] [#]} R8d4 $1 {[%emt 0:00:15] ...Rc1 is the strong threat.} 49. Ne6 {[%emt 0:01:48]} (49. Ne2 {was the only chance.}) 49... a5 {[%emt 0:02:53] Black has a decisive advantage.} 50. Nxd4 {[%emt 0:02:03]} Rxd4 {[%emt 0:00:09]} (50... axb4 51. Nb3 Rd8 52. Kf1 $15 (52. a5 $2 Rc8 $19)) 51. Rb1 {[%emt 0:04:18]} Rxc4 {[%emt 0:00:06]} 52. Kf1 {[%emt 0:00:03]} Kg7 {[%emt 0:01:01] Weighted Error Value: White=0.23 (precise) /Black=0.11 (very precise) .  Mistake:       	White=8     	Black=2      Inaccurate:     	White=2     	Black=4      OK:         	White=14    	Black=21     Best:        	White=1     	Black=2      Strong:       	---       	Black=1} (52... Rxa4 53. b6 Bc6 54. b7 Bxb7 55. Rxb7 $11) 0-1

[Event "Prague Festival Masters 2024"]
[Site "Prague"]
[Date "2024.02.28"]
[Round "2.2"]
[White "Rapport, Richard"]
[Black "Bartel, Mateusz"]
[Result "1/2-1/2"]
[ECO "C55"]
[WhiteElo "2717"]
[BlackElo "2657"]
[Annotator "TA"]
[PlyCount "74"]
[EventDate "2024.02.22"]
[EventType "tourn"]
[EventCountry "CZE"]
[SourceTitle "playchess.com"]
[Source "ChessBase"]
[SourceQuality "1"]
[TimeControl "40/5400+30:1800+30"]

{[%evp 10,74,31,29,41,25,36,18,40,29,41,9,43,31,39,43,32,30,35,13,8,5,51,22,23,17,46,0,0,8,29,29,33,14,13,12,10,0,0,0,23,0,0,7,10,6,5,0,8,8,16,0,0,0,0,0,0,0,0,0,0,0,0,-25,-25,-45,-24]} 1. e4 {[%emt 0:00:13]} e5 {[%emt 0:00:07]} 2. Nf3 {[%emt 0:01:02]} Nc6 {[%emt 0:00:05]} 3. Bc4 {[%emt 0:00:19]} Nf6 {[%emt 0:00:08]} 4. d3 {[%emt 0:00:06]} h6 {[%emt 0:00:06]} 5. O-O {[%emt 0:00:30]} d6 {[%emt 0:01:54]} 6. a4 {[%emt 0:01:22]} Be7 {[%emt 0:02:14]} 7. Nc3 {[%emt 0:02:27]} a5 {[%emt 0:01:31]} 8. Re1 {[%emt 0:11:15]} O-O {[%emt 0:04:27] The position is equal.} 9. h3 {[%emt 0:02:10]} Be6 {[%emt 0:03:17]} 10. Nd5 {[%emt 0:01:13]} Nb4 {[%emt 0:14:13]} 11. Nxf6+ {[%emt 0:04:28]} Bxf6 {[%emt 0:00:06]} 12. Bxe6 {[%emt 0:00:14]} fxe6 {[%emt 0:00:04]} 13. c3 {[%emt 0:00:19]} Nc6 {[%emt 0:00:30]} 14. b4 {[%emt 0:11:37]} axb4 {[%emt 0:12:19]} 15. cxb4 {[%emt 0:00:35]} b5 {[%emt 0:01:49]} (15... Nxb4 $11 16. Qb3 Na6) 16. Bd2 {[%emt 0:04:09]} (16. Qb3 {seems wilder.} bxa4 17. Qxe6+ Kh7 18. Bd2) 16... bxa4 {[%emt 0:04:15]} 17. Rxa4 {[%emt 0:02:08]} Qd7 {[%emt 0:00:09]} 18. Rxa8 {[%emt 0:13:03]} Rxa8 {[%emt 0:00:04]} 19. Qb3 {[%emt 0:00:24]} Nd8 {[%emt 0:10:21]} 20. Rc1 {[%emt 0:03:46]} c6 {[%emt 0:01:38]} 21. Be3 {[%emt 0:04:47]} Rb8 {[%emt 0:03:51][%cal Oc6c5]} 22. Qa3 {[%emt 0:03:02]} Qb7 {[%emt 0:03:10]} 23. b5 {[%emt 0:02:30] [#] bxc6 is the strong threat.} c5 {[%emt 0:00:30]} 24. Rb1 $1 {[%emt 0:03:11]} Nc6 {[%emt 0:04:49]} 25. Qb3 {[%emt 0:05:14][%cal Ob5c6]} Qc8 {[%emt 0:03:20]} 26. Nd2 {[%emt 0:01:16]} Nb4 {[%emt 0:02:22][%cal Of6e7]} 27. Nc4 {[%emt 0:02:04]} Qd7 {[%emt 0:01:02]} 28. Na3 {[%emt 0:02:23]} Kh7 {[%emt 0:01:55]} 29. Bd2 {[%emt 0:04:00]} d5 {[%emt 0:01:47]} 30. exd5 {[%emt 0:02:15]} exd5 {[%emt 0:01:03]} 31. d4 {[%emt 0:00:30]} exd4 {[%emt 0:01:47]} 32. Bxb4 {[%emt 0:01:23]} cxb4 {[%emt 0:00:05]} 33. Qxb4 {[%emt 0:01:12]} Qf5 {[%emt 0:01:47] Prevents Nc2.} 34. Rd1 {[%emt 0:01:52]} Be5 {[%emt 0:07:02]} 35. Qb1 {[%emt 0:01:24]} Qxb1 {[%emt 0:01:15]} 36. Nxb1 {[%emt 0:01:06]} Rxb5 {[%emt 0:00:55]} 37. Nd2 {[%emt 0:00:04]} Bf6 {[%emt 0:04:44] Weighted Error Value: White=0.09 (flawless) /Black=0.09 (flawless) .  Mistake:       	---       	Black=1      Inaccurate:     	White=3     	Black=2      OK:         	White=12    	Black=12     Best:        	---       	Black=1      Strong:       	White=1     	---} 1/2-1/2

[Event "Prague Festival Masters 2024"]
[Site "Prague"]
[Date "2024.02.28"]
[Round "2.3"]
[White "Vidit, Santosh Gujrathi"]
[Black "Abdusattorov, Nodirbek"]
[Result "1/2-1/2"]
[ECO "C48"]
[WhiteElo "2742"]
[BlackElo "2727"]
[Annotator "TA"]
[PlyCount "69"]
[EventDate "2024.02.22"]
[EventType "tourn"]
[EventCountry "CZE"]
[SourceTitle "playchess.com"]
[Source "ChessBase"]
[SourceQuality "1"]
[TimeControl "40/5400+30:1800+30"]

{[%evp 10,69,43,41,45,33,37,40,47,35,45,48,45,45,52,50,47,50,55,50,54,54,52,43,70,71,72,74,72,68,72,72,71,71,71,59,65,60,54,60,72,58,59,8,35,8,8,7,2,0,0,0,0,0,0,0,0,0,0,0,0,0]} 1. e4 {[%emt 0:00:43]} e5 {[%emt 0:00:14]} 2. Nf3 {[%emt 0:00:11]} Nf6 {[%emt 0:00:08]} 3. Nc3 {[%emt 0:01:01]} Nc6 {[%emt 0:00:16]} 4. Bb5 {[%emt 0:00:29]} Nd4 {[%emt 0:00:10]} 5. Bc4 {[%emt 0:00:40]} Bc5 {[%emt 0:01:28]} 6. Nxe5 {[%emt 0:00:36]} Qe7 {[%emt 0:00:43]} 7. Nf3 {[%emt 0:00:26]} (7. Nxf7 d5 8. Nxh8 dxc4 $17) (7. Bxf7+ Kf8 8. Nd3 (8. f4 d6 $17) 8... Kxf7 $17) 7... d5 $1 {[%emt 0:05:16]} 8. Bxd5 {[%emt 0:00:57]} Nxd5 {[%emt 0:02:38] White is slightly better.} 9. Nxd4 {[%emt 0:09:47]} Nxc3 {[%emt 0:05:35]} 10. bxc3 {[%emt 0:08:08]} Qxe4+ {[%emt 0:11:46]} 11. Qe2 {[%emt 0:03:01]} Qxe2+ {[%emt 0:00:12]} 12. Kxe2 {[%emt 0:03:08]} Bg4+ {[%emt 0:08:11]} 13. f3 {[%emt 0:15:11]} Bd7 {[%emt 0:00:14]} 14. d3 {[%emt 0:00:16]} O-O-O {[%emt 0:00:59]} 15. Be3 {[%emt 0:06:09][%cal Bc1e3,Be3c5,Bc5d4][%mdl 32]} Rhe8 {[%emt 0:02:07][%cal Bh8e8,Be8e7,Be7e5,Be5f5][%mdl 32]} 16. Kd2 {[%emt 0:00:28]} Re7 {[%emt 0:01:54] [#]} 17. Nf5 $1 {[%emt 0:08:41]} Re5 {[%emt 0:04:39]} (17... Bxf5 18. Bxc5) 18. Bxc5 {[%emt 0:01:36]} (18. Nxg7 $2 Bxe3+ 19. Kd1 Bh6 $19 (19... Rg8 $2 20. Re1 $19)) 18... Rxf5 {[%emt 0:00:07]} 19. Bd4 {[%emt 0:04:16]} (19. Bxa7 $2 b6 20. Rhe1 Ra5 21. Bxb6 cxb6 $17) 19... h5 {[%emt 0:03:43][%cal Bh7h5,Bh5h4][%mdl 32]} 20. Rhe1 {[%emt 0:03:13]} (20. Bxg7 Rg5 21. Bf6 Rxg2+ 22. Ke3 Re8+ 23. Kf4 Rxc2 $17) (20. Bxa7 $2 b6 21. Rhe1 Kb7 22. Bxb6 cxb6 $19) 20... h4 {[%emt 0:08:57]} 21. h3 {[%emt 0:00:27] White is more active.} (21. Bxg7 Rg8 22. Bd4 Rxg2+ 23. Re2 Rg6 $11) (21. Bxa7 $2 b6 22. Re3 Kb7 (22... Ra5 $2 23. Bxb6 cxb6 24. Re4 $19) 23. Bxb6 cxb6 $19 (23... Kxb6 $2 24. Rb1+ Ka7 25. Rbe1 $19)) 21... Rg5 {[%emt 0:00:18]} 22. Rg1 {[%emt 0:05:54]} (22. Bxa7 $2 {perishes.} Rxg2+ 23. Kc1 b6 $19 (23... Bxh3 $2 24. Bd4 $19)) 22... Re8 {[%emt 0:03:29]} 23. c4 {[%emt 0:04:49]} (23. Bxa7 $2 {is the wrong capture.} b6 24. a4 Ra5 25. Bxb6 cxb6 $19) 23... Re6 {[%emt 0:00:52]} 24. Be3 {[%emt 0:03:47]} (24. Bxa7 $2 {too greedy.} b6 25. g4 Ra5 (25... hxg3 $2 26. f4 $19) 26. Bxb6 cxb6 $19 (26... Rxb6 $2 27. f4 $19)) 24... Ra5 {[%emt 0:02:11]} 25. a3 {[%emt 0:02:43]} Rg6 {[%emt 0:00:24]} 26. c5 {[%emt 0:01:53]} ({Better is} 26. Ke1 $14) 26... b6 $11 {[%emt 0:00:29]} 27. cxb6 {[%emt 0:04:41]} axb6 {[%emt 0:00:19] The position is equal.} 28. c4 {[%emt 0:00:17]} b5 {[%emt 0:02:34]} 29. Kc3 {[%emt 0:01:21]} bxc4 {[%emt 0:11:45]} 30. dxc4 {[%emt 0:00:07]} Re5 {[%emt 0:00:31]} 31. Kd4 {[%emt 0:02:25]} Re8 {[%emt 0:01:30] [#] Threatens to win with ...Rd6+.} 32. Rae1 {[%emt 0:01:33]} Bf5 {[%emt 0:01:24]} 33. Bf2 {[%emt 0:01:47]} Rxe1 {[%emt 0:01:55]} 34. Bxe1 {[%emt 0:00:08]} Bxh3 {[%emt 0:00:04]} 35. Bxh4 {[%emt 0:00:08] Weighted Error Value: White=0.06 (flawless) /Black=0.02 (flawless) .  Mistake:       	White=1     	---        Inaccurate:     	White=1     	Black=1      OK:         	White=12    	Black=16     Best:        	White=3     	---        Strong:       	---       	Black=1} 1/2-1/2

[Event "Prague Festival Masters 2024"]
[Site "Prague"]
[Date "2024.02.28"]
[Round "2.4"]
[White "Navara, David"]
[Black "Keymer, Vincent"]
[Result "1/2-1/2"]
[ECO "C90"]
[WhiteElo "2679"]
[BlackElo "2743"]
[Annotator "TA"]
[PlyCount "74"]
[EventDate "2024.02.22"]
[EventType "tourn"]
[EventCountry "CZE"]
[SourceTitle "playchess.com"]
[Source "ChessBase"]
[SourceQuality "1"]
[TimeControl "40/5400+30:1800+30"]

{[%evp 23,74,21,22,10,14,10,12,13,13,14,18,0,0,0,31,17,27,18,27,27,27,27,21,34,24,25,22,16,22,17,43,0,0,0,0,0,0,0,10,9,10,25,15,0,0,0,0,0,0,0,0,0,0]} 1. e4 {[%emt 0:00:02]} e5 {[%emt 0:00:05]} 2. Nf3 {[%emt 0:00:06]} Nc6 {[%emt 0:00:02]} 3. Bb5 {[%emt 0:00:06]} a6 {[%emt 0:00:05]} 4. Ba4 {[%emt 0:00:05]} Nf6 {[%emt 0:00:03]} 5. O-O {[%emt 0:00:08]} Be7 {[%emt 0:00:04]} 6. d3 {[%emt 0:00:05]} b5 {[%emt 0:00:10]} 7. Bb3 {[%emt 0:00:04]} d6 {[%emt 0:00:04]} 8. a4 {[%emt 0:00:11]} Bd7 {[%emt 0:01:05]} 9. c3 {[%emt 0:00:26]} O-O {[%emt 0:00:27]} 10. Bc2 {[%emt 0:00:20]} h6 {[%emt 0:02:18]} 11. Re1 {[%emt 0:00:57]} Re8 {[%emt 0:00:20]} 12. Nbd2 {[%emt 0:01:16][%cal Bb1d2,Bd2f1,Bf1g3][%mdl 32]} Bf8 {[%emt 0:01:25]} 13. h3 {[%emt 0:01:12]} Rb8 {[%emt 0:09:00]} 14. axb5 {[%emt 0:00:58]} axb5 {[%emt 0:00:26]} 15. Nf1 {[%emt 0:00:43]} d5 {[%emt 0:14:06]} 16. exd5 {[%emt 0:05:54]} Nxd5 {[%emt 0:00:11]} 17. Bb3 {[%emt 0:06:09]} Nf6 {[%emt 0:02:22]} 18. Ng3 {[%emt 0:02:01]} b4 {[%emt 0:15:33]} 19. Bd2 {[%emt 0:10:17]} Bd6 {[%emt 0:02:43]} 20. Nh4 {[%emt 0:06:51]} bxc3 {[%emt 0:02:17]} 21. bxc3 {[%emt 0:01:01]} e4 {[%emt 0:16:25]} 22. dxe4 {[%emt 0:00:58]} Bxg3 {[%emt 0:00:13]} 23. fxg3 {[%emt 0:00:07]} g5 {[%emt 0:05:03]} (23... Nxe4 24. Bxf7+ Kxf7 25. Rxe4 $16) 24. Nf3 {[%emt 0:14:38][%cal Bh4f3,Bf3d2,Bd2e4,Be4f6][%mdl 32]} Nxe4 {[%emt 0:00:07]} 25. g4 {[%emt 0:10:02]} Nxd2 {[%emt 0:05:59]} 26. Nxd2 {[%emt 0:00:30] White wants to play Qc2.} Ne5 {[%emt 0:01:42]} 27. Ne4 {[%emt 0:01:18] Black must now prevent Rf1.} Bc6 {[%emt 0:02:11] Hoping for ...Nd3.} 28. Bd5 {[%emt 0:02:28]} Bxd5 {[%emt 0:06:37]} 29. Qxd5 {[%emt 0:00:24]} Qxd5 {[%emt 0:00:09]} ({Wrong is} 29... Nf3+ $2 30. gxf3 Qxd5 31. Nf6+ Kg7 32. Nxd5 $18) 30. Nf6+ {[%emt 0:00:07]} Kf8 {[%emt 0:02:15]} 31. Nxd5 {[%emt 0:00:09]} c6 {[%emt 0:00:19]} 32. Nf6 {[%emt 0:00:15][%cal Oe1e5] [#] Rxe5! is the strong threat.} Re6 {[%emt 0:00:03]} 33. Rxe5 {[%emt 0:01:59] The position is equal.} Rxf6 {[%emt 0:00:06]} (33... Rxe5 $2 {perishes.} 34. Nd7+ Ke7 35. Nxe5 $18 (35. Nxb8 Kd6 $18)) 34. Rf1 {[%emt 0:02:57]} Rxf1+ {[%emt 0:02:58]} 35. Kxf1 {[%emt 0:00:12]} Rd8 {[%emt 0:00:40]} 36. Ke2 {[%emt 0:00:39]} Rd6 {[%emt 0:00:04]} 37. Ke3 {[%emt 0:01:09]} Kg7 {[%emt 0:00:57] A balanced but interesting game.   Weighted Error Value: White=0.06 (flawless) /Black=0.06 (flawless) .  Inaccurate:     	White=1     	Black=2      OK:         	White=8     	Black=13} 1/2-1/2

[Event "Prague Festival Masters 2024"]
[Site "Prague"]
[Date "2024.02.28"]
[Round "2.5"]
[White "Maghsoodloo, Parham"]
[Black "Praggnanandhaa R"]
[Result "1-0"]
[ECO "D00"]
[WhiteElo "2740"]
[BlackElo "2743"]
[Annotator "TA"]
[PlyCount "75"]
[EventDate "2024.02.22"]
[EventType "tourn"]
[EventCountry "CZE"]
[SourceTitle "playchess.com"]
[Source "ChessBase"]
[SourceQuality "1"]
[TimeControl "40/5400+30:1800+30"]

{[%evp 14,75,34,0,15,0,0,0,27,-22,-39,-28,0,0,0,-15,-18,-5,0,-11,-13,-14,-19,-44,-43,-35,-39,-35,-36,-54,-40,-62,-64,-58,-75,-50,-53,-93,-96,-102,-77,-71,-84,-77,-108,-86,0,0,0,0,0,0,36,-19,54,37,32,19,26,0,141,0,912,887]} 1. d4 {[%emt 0:00:08]} Nf6 {[%emt 0:00:44]} 2. Bf4 {[%emt 0:00:09]} d5 {[%emt 0:00:57]} 3. e3 {[%emt 0:00:08]} Bf5 {[%emt 0:02:03]} 4. c4 {[%emt 0:00:14]} e6 {[%emt 0:00:51]} 5. Qb3 {[%emt 0:04:21]} Nbd7 {[%emt 0:10:11]} 6. Nc3 {[%emt 0:09:21] D00: 1 d4 d5: Unusual lines.} dxc4 {[%emt 0:04:57]} 7. Bxc4 {[%emt 0:02:20]} Nb6 {[%emt 0:08:04]} 8. Be2 {[%emt 0:04:41]} a5 $146 {[%emt 0:03:56]} ({Predecessor:} 8... c6 9. Nf3 Be7 10. O-O O-O 11. Rac1 h6 12. h3 a5 13. a3 a4 14. Qd1 Nfd5 {0-1 So,W (2752)-Caruana,F (2795) Saint Louis Blitz 2023 (10)}) 9. a3 {[%emt 0:08:50]} c6 {[%emt 0:07:47]} 10. Bg5 {[%emt 0:16:38]} Be7 {[%emt 0:01:51]} 11. f3 {[%emt 0:07:52]} (11. Nf3 $142) 11... a4 $11 {[%emt 0:11:25]} 12. Qd1 {[%emt 0:01:07]} Nfd7 {[%emt 0:03:04]} 13. Bxe7 {[%emt 0:00:28]} Qxe7 {[%emt 0:00:03]} 14. e4 {[%emt 0:00:27]} Bg6 {[%emt 0:00:12]} 15. Nh3 {[%emt 0:01:44]} O-O {[%emt 0:02:10]} 16. O-O {[%emt 0:03:48]} f6 {[%emt 0:07:44]} 17. f4 {[%emt 0:03:08]} e5 {[%emt 0:01:53]} 18. dxe5 {[%emt 0:01:35]} fxe5 {[%emt 0:00:06]} 19. f5 {[%emt 0:00:23]} Bf7 {[%emt 0:00:09]} 20. Qe1 {[%emt 0:02:03]} Nc5 {[%emt 0:06:00]} 21. Qg3 {[%emt 0:03:56]} Bc4 {[%emt 0:01:46]} 22. Rae1 {[%emt 0:00:17]} Rad8 {[%emt 0:01:59]} 23. Nf2 {[%emt 0:00:07]} Bxe2 {[%emt 0:05:38]} 24. Rxe2 {[%emt 0:00:35]} Nc4 {[%emt 0:01:45]} 25. Ng4 {[%emt 0:02:18]} Kh8 {[%emt 0:00:06]} 26. Rf3 {[%emt 0:06:13]} Rd4 {[%emt 0:03:00]} 27. h3 {[%emt 0:04:31]} b5 {[%emt 0:02:12]} 28. f6 {[%emt 0:03:59]} gxf6 {[%emt 0:00:09]} 29. Ref2 {[%emt 0:00:17]} Nd7 {[%emt 0:02:44]} (29... Nxe4 $6 30. Nxe4 Rxe4 31. Rxf6 $11) (29... Rd6 $1 $17) 30. Nh6 $11 {[%emt 0:05:53]} Nd2 {[%emt 0:04:57]} 31. Re3 $1 {[%emt 0:00:58]} Qe6 {[%emt 0:01:49]} 32. Qh4 {[%emt 0:01:57]} Nc5 {[%emt 0:02:03]} 33. Rf5 {[%emt 0:01:39]} (33. Nf5 $14 Qf7 34. Rg3 (34. Nxd4 exd4 35. Rxd2 dxe3 $11) 34... Ndxe4 35. Nxd4 (35. Rg7 Qxg7 36. Nxg7 Nxf2 $15) 35... Nxg3 (35... Nxf2 $2 36. Nf5 $18) 36. Nxc6) 33... b4 {[%emt 0:02:37]} (33... Qe7 $11) 34. axb4 $14 {[%emt 0:00:10]} Rxb4 {[%emt 0:00:02]} 35. Qg4 {[%emt 0:02:58]} Rbb8 {[%emt 0:02:33]} (35... Rxb2 $2 36. Rg3 Rb7 37. Rxf6 Qxg4 (37... Qxf6 38. Qg8+ Rxg8 39. Rxg8#) 38. Rxf8+ (38. Rxg4 Rbb8 $18) 38... Kg7 39. Rg8+ (39. Rxg4+ Kxf8 40. Rg8+ Ke7 $17) 39... Kf6 40. Nxg4+ $18 (40. hxg4 Ke6 $18)) 36. Rg3 {[%emt 0:00:11]} Qd7 {[%emt 0:00:28]} (36... Rxb2 37. Qg7#) (36... Qe7 $1 $11) 37. Kh1 {[%emt 0:02:39]} (37. Qh4 $16 Qe6 38. Rf2 (38. Qg4 Qe7 $14)) 37... Ne6 $2 {[%emt 0:00:30][%mdl 8192]} ({And not} 37... Rxb2 38. Qg8+ Rxg8 39. Rxg8#) (37... Nc4 $11) 38. Rxf6 {[%emt 0:00:07]} ({Stronger than} 38. Nxa4 Qg7 39. Qh4 Ng5 $15) 1-0